[Event "Titled Tuesday Blitz November 22 Early 2022"]
[White "Vargas, Mauricio"]
[Black "Kriti Mayur Patel"]
[WhiteFideId "4404572"]
[BlackFideId "35061780"]
[WhiteElo "2025"]
[BlackElo "1306"]
[Result "0-1"]
[Round "11"]
[TimeControl "180+1"]
[Date "2022.11.23"]
[WhiteClock "0:00:01"]
[BlackClock "0:02:22"]

1. e4 {[%clk 0:00:53]}  e5 {[%clk 0:02:58]} 2. Nf3 {[%clk 0:00:49]}  Nc6 {[%clk 0:02:58]} 3. d3 {[%clk 0:00:49]}  Nf6 {[%clk 0:02:58]} 4. g3 {[%clk 0:00:48]}  Bc5 {[%clk 0:02:59]} 5. Bg2 {[%clk 0:00:47]}  O-O {[%clk 0:02:59]} 6. O-O {[%clk 0:00:48]}  d5 {[%clk 0:02:59]} 7. exd5 {[%clk 0:00:45]}  Nxd5 {[%clk 0:02:59]} 8. c3 {[%clk 0:00:40]}  Bg4 {[%clk 0:02:58]} 9. Nbd2 {[%clk 0:00:39]}  Qd7 {[%clk 0:02:57]} 10. Qe1 {[%clk 0:00:34]}  Rae8 {[%clk 0:02:54]} 11. Nb3 {[%clk 0:00:17]}  Bb6 {[%clk 0:02:53]} 12. c4 {[%clk 0:00:13]}  Ndb4 {[%clk 0:02:49]} 13. c5 {[%clk 0:00:07]}  Nxd3 {[%clk 0:02:45]} 14. Qc3 {[%clk 0:00:05]}  e4 {[%clk 0:02:33]} 15. cxb6 {[%clk 0:00:05]}  exf3 {[%clk 0:02:30]} 16. Bh1 {[%clk 0:00:04]}  Bh3 {[%clk 0:02:28]} 17. Rd1 {[%clk 0:00:04]}  axb6 {[%clk 0:02:26]} 18. Be3 {[%clk 0:00:02]}  Bf5 {[%clk 0:02:22]} 19. Bxf3 {[%clk 0:00:01]}  Nce5 {[%clk 0:02:22]} 0-1


[Site "https://www.chess.com"]

[Event "Titled Tuesday Blitz November 22 Early 2022"]
[White "Vlassov, Nikolai"]
[Black "Vifleemskaia, Svetlana"]
[WhiteFideId "4103360"]
[BlackFideId "4129490"]
[WhiteElo "2324"]
[BlackElo "1929"]
[Result "0-1"]
[Round "11"]
[TimeControl "180+1"]
[Date "2022.11.23"]
[WhiteClock "0:00:25"]
[BlackClock "0:00:01"]

1. e4 {[%clk 0:02:55]}  e5 {[%clk 0:02:59]} 2. Bc4 {[%clk 0:02:52]}  Nf6 {[%clk 0:02:58]} 3. d3 {[%clk 0:02:52]}  c6 {[%clk 0:02:59]} 4. Nf3 {[%clk 0:02:51]}  d5 {[%clk 0:02:59]} 5. Bb3 {[%clk 0:02:52]}  Bd6 {[%clk 0:02:57]} 6. Nc3 {[%clk 0:02:50]}  O-O {[%clk 0:02:50]} 7. exd5 {[%clk 0:02:49]}  cxd5 {[%clk 0:02:49]} 8. Bxd5 {[%clk 0:02:49]}  Nxd5 {[%clk 0:02:41]} 9. Nxd5 {[%clk 0:02:49]}  Bg4 {[%clk 0:02:23]} 10. Ne3 {[%clk 0:02:48]}  Bh5 {[%clk 0:02:23]} 11. Nf5 {[%clk 0:02:47]}  Nc6 {[%clk 0:02:09]} 12. Ng3 {[%clk 0:02:46]}  Bg6 {[%clk 0:01:45]} 13. O-O {[%clk 0:02:44]}  f5 {[%clk 0:01:43]} 14. c3 {[%clk 0:02:21]}  Kh8 {[%clk 0:01:22]} 15. Qb3 {[%clk 0:02:15]}  Qc7 {[%clk 0:01:03]} 16. Ng5 {[%clk 0:02:00]}  Rf6 {[%clk 0:00:52]} 17. Bd2 {[%clk 0:01:42]}  h6 {[%clk 0:00:50]} 18. Nh3 {[%clk 0:01:41]}  Bf7 {[%clk 0:00:39]} 19. Qa4 {[%clk 0:01:38]}  g5 {[%clk 0:00:38]} 20. f3 {[%clk 0:01:33]}  Bc5+ {[%clk 0:00:35]} 21. Kh1 {[%clk 0:01:32]}  a6 {[%clk 0:00:33]} 22. b4 {[%clk 0:01:30]}  b5 {[%clk 0:00:32]} 23. Qc2 {[%clk 0:01:29]}  Bb6 {[%clk 0:00:31]} 24. a4 {[%clk 0:01:27]}  Rd8 {[%clk 0:00:29]} 25. axb5 {[%clk 0:01:27]}  Nxb4 {[%clk 0:00:23]} 26. Qb1 {[%clk 0:01:18]}  Nxd3 {[%clk 0:00:22]} 27. bxa6 {[%clk 0:01:13]}  Qa7 {[%clk 0:00:20]} 28. Ra4 {[%clk 0:00:51]}  Be8 {[%clk 0:00:13]} 29. Rc4 {[%clk 0:00:46]}  Bf7 {[%clk 0:00:12]} 30. Ra4 {[%clk 0:00:42]}  Be8 {[%clk 0:00:12]} 31. Ra2 {[%clk 0:00:41]}  Bf7 {[%clk 0:00:10]} 32. Ra1 {[%clk 0:00:40]}  Bc4 {[%clk 0:00:10]} 33. Ra4 {[%clk 0:00:37]}  Bxa6 {[%clk 0:00:05]} 34. Qa2 {[%clk 0:00:34]}  Nc5 {[%clk 0:00:05]} 35. Ra3 {[%clk 0:00:32]}  Qb7 {[%clk 0:00:03]} 36. Rb1 {[%clk 0:00:29]}  Bd3 {[%clk 0:00:01]} 37. Rb2 {[%clk 0:00:27]}  Qc7 {[%clk 0:00:02]} 38. Nxg5 {[%clk 0:00:25]}  hxg5 {[%clk 0:00:01]} 39. Bxg5 {[%clk 0:00:25]}  Rff8 {[%clk 0:00:01]} 0-1


[Site "https://www.chess.com"]

[Event "Titled Tuesday Blitz November 22 Early 2022"]
[White "Winterberg, Lukas"]
[Black "Ansh M Shah"]
[WhiteFideId "24622702"]
[BlackFideId "25033379"]
[WhiteElo "2349"]
[BlackElo "2084"]
[Result "0-1"]
[Round "11"]
[TimeControl "180+1"]
[Date "2022.11.23"]
[WhiteClock "0:00:10"]
[BlackClock "0:00:09"]

1. e4 {[%clk 0:03:00]}  c6 {[%clk 0:02:57]} 2. Nc3 {[%clk 0:02:59]}  d5 {[%clk 0:02:58]} 3. Nf3 {[%clk 0:02:58]}  dxe4 {[%clk 0:02:54]} 4. Nxe4 {[%clk 0:02:57]}  Nf6 {[%clk 0:02:55]} 5. Qe2 {[%clk 0:02:58]}  Bf5 {[%clk 0:02:53]} 6. Ng3 {[%clk 0:02:49]}  Bg6 {[%clk 0:02:52]} 7. Ne5 {[%clk 0:02:46]}  e6 {[%clk 0:02:47]} 8. h4 {[%clk 0:02:46]}  Bxc2 {[%clk 0:02:40]} 9. d3 {[%clk 0:02:35]}  Ba4 {[%clk 0:02:40]} 10. b3 {[%clk 0:02:31]}  Bb5 {[%clk 0:02:40]} 11. a4 {[%clk 0:02:30]}  Ba6 {[%clk 0:02:39]} 12. Bb2 {[%clk 0:02:30]}  Nbd7 {[%clk 0:02:38]} 13. f4 {[%clk 0:02:29]}  Be7 {[%clk 0:02:37]} 14. h5 {[%clk 0:02:29]}  h6 {[%clk 0:02:36]} 15. O-O-O {[%clk 0:02:27]}  Nxe5 {[%clk 0:02:33]} 16. fxe5 {[%clk 0:02:24]}  Nd5 {[%clk 0:02:32]} 17. Ne4 {[%clk 0:02:25]}  O-O {[%clk 0:02:19]} 18. Qg4 {[%clk 0:02:21]}  Bg5+ {[%clk 0:02:12]} 19. Kb1 {[%clk 0:02:20]}  Ne3 {[%clk 0:02:11]} 20. Qf3 {[%clk 0:02:11]}  Nxd1 {[%clk 0:02:07]} 21. Qxd1 {[%clk 0:02:12]}  Qd5 {[%clk 0:01:53]} 22. Rh3 {[%clk 0:02:08]}  Rad8 {[%clk 0:01:49]} 23. Qg4 {[%clk 0:02:08]}  Qxb3 {[%clk 0:01:26]} 24. Nxg5 {[%clk 0:01:34]}  Bxd3+ {[%clk 0:01:01]} 25. Bxd3 {[%clk 0:01:05]}  Rxd3 {[%clk 0:01:02]} 26. Rxd3 {[%clk 0:00:58]}  Qxd3+ {[%clk 0:01:03]} 27. Ka2 {[%clk 0:00:59]}  hxg5 {[%clk 0:01:02]} 28. Qxg5 {[%clk 0:00:59]}  Rd8 {[%clk 0:00:40]} 29. h6 {[%clk 0:00:53]}  Qc4+ {[%clk 0:00:39]} 30. Kb1 {[%clk 0:00:53]}  Rd1+ {[%clk 0:00:39]} 31. Bc1 {[%clk 0:00:53]}  Qb3+ {[%clk 0:00:36]} 32. Ka1 {[%clk 0:00:53]}  Qxa4+ {[%clk 0:00:36]} 33. Kb2 {[%clk 0:00:54]}  Qd4+ {[%clk 0:00:31]} 34. Kc2 {[%clk 0:00:51]}  Qd3+ {[%clk 0:00:24]} 35. Kb2 {[%clk 0:00:51]}  Qb5+ {[%clk 0:00:19]} 36. Kc2 {[%clk 0:00:40]}  Qa4+ {[%clk 0:00:19]} 37. Kb2 {[%clk 0:00:30]}  Qb4+ {[%clk 0:00:13]} 38. Kc2 {[%clk 0:00:30]}  Rxc1+ {[%clk 0:00:10]} 39. Kxc1 {[%clk 0:00:31]}  Qf8 {[%clk 0:00:09]} 40. g4 {[%clk 0:00:21]}  Kh7 {[%clk 0:00:09]} 41. hxg7 {[%clk 0:00:20]}  Qxg7 {[%clk 0:00:09]} 42. Qe7 {[%clk 0:00:16]}  Qg6 {[%clk 0:00:08]} 43. g5 {[%clk 0:00:15]}  Kg7 {[%clk 0:00:07]} 44. Kb2 {[%clk 0:00:14]}  b5 {[%clk 0:00:06]} 45. Kc3 {[%clk 0:00:13]}  c5 {[%clk 0:00:06]} 46. Qxc5 {[%clk 0:00:13]}  Qxg5 {[%clk 0:00:06]} 47. Qxb5 {[%clk 0:00:13]}  Qe3+ {[%clk 0:00:06]} 48. Kc2 {[%clk 0:00:14]}  Kg6 {[%clk 0:00:05]} 49. Qa5 {[%clk 0:00:08]}  Kf5 {[%clk 0:00:05]} 50. Qc7 {[%clk 0:00:07]}  Qe4+ {[%clk 0:00:04]} 51. Kc1 {[%clk 0:00:06]}  Qf4+ {[%clk 0:00:04]} 52. Kc2 {[%clk 0:00:06]}  Ke4 {[%clk 0:00:03]} 53. Qxa7 {[%clk 0:00:04]}  Kxe5 {[%clk 0:00:03]} 54. Qc7+ {[%clk 0:00:05]}  Ke4 {[%clk 0:00:03]} 55. Qc4+ {[%clk 0:00:04]}  Kf3 {[%clk 0:00:04]} 56. Qf1+ {[%clk 0:00:04]}  Kg4 {[%clk 0:00:04]} 57. Qg2+ {[%clk 0:00:04]}  Kh5 {[%clk 0:00:03]} 58. Qh3+ {[%clk 0:00:04]}  Kg6 {[%clk 0:00:04]} 59. Qg2+ {[%clk 0:00:03]}  Qg5 {[%clk 0:00:05]} 60. Qh2 {[%clk 0:00:02]}  Qf5+ {[%clk 0:00:05]} 61. Kc1 {[%clk 0:00:02]}  Kf6 {[%clk 0:00:05]} 62. Qh8+ {[%clk 0:00:02]}  Ke7 {[%clk 0:00:05]} 63. Qc8 {[%clk 0:00:02]}  Qd5 {[%clk 0:00:05]} 64. Qc7+ {[%clk 0:00:02]}  Qd7 {[%clk 0:00:05]} 65. Qh2 {[%clk 0:00:03]}  Qc6+ {[%clk 0:00:05]} 66. Kb1 {[%clk 0:00:03]}  f5 {[%clk 0:00:05]} 67. Qh4+ {[%clk 0:00:03]}  Kd6 {[%clk 0:00:05]} 68. Qd4+ {[%clk 0:00:03]}  Qd5 {[%clk 0:00:05]} 69. Qb4+ {[%clk 0:00:04]}  Ke5 {[%clk 0:00:06]} 70. Qb8+ {[%clk 0:00:05]}  Ke4 {[%clk 0:00:06]} 71. Qb4+ {[%clk 0:00:05]}  Qd4 {[%clk 0:00:06]} 72. Qe1+ {[%clk 0:00:06]}  Kd5 {[%clk 0:00:06]} 73. Qa5+ {[%clk 0:00:07]}  Qc5 {[%clk 0:00:07]} 74. Qd2+ {[%clk 0:00:07]}  Kc6 {[%clk 0:00:07]} 75. Qd8 {[%clk 0:00:07]}  Qd5 {[%clk 0:00:06]} 76. Qc8+ {[%clk 0:00:07]}  Kd6 {[%clk 0:00:07]} 77. Qd8+ {[%clk 0:00:07]}  Ke5 {[%clk 0:00:07]} 78. Qh8+ {[%clk 0:00:07]}  Ke4 {[%clk 0:00:08]} 79. Qh1+ {[%clk 0:00:08]}  Kd4 {[%clk 0:00:08]} 80. Qd1+ {[%clk 0:00:08]}  Kc5 {[%clk 0:00:08]} 81. Qc2+ {[%clk 0:00:08]}  Qc4 {[%clk 0:00:08]} 82. Qf2+ {[%clk 0:00:09]}  Qd4 {[%clk 0:00:08]} 83. Qc2+ {[%clk 0:00:09]}  Kd5 {[%clk 0:00:09]} 84. Qg2+ {[%clk 0:00:09]}  Qe4+ {[%clk 0:00:09]} 85. Qxe4+ {[%clk 0:00:10]}  Kxe4 {[%clk 0:00:09]} 0-1


[Site "https://www.chess.com"]

[Event "Titled Tuesday Blitz November 22 Early 2022"]
[White "Xu, Yi"]
[Black "Munkhgal, Gombosuren"]
[WhiteFideId "8605564"]
[BlackFideId "4901266"]
[WhiteElo "2471"]
[BlackElo "2576"]
[Result "0-1"]
[Round "11"]
[TimeControl "180+1"]
[Date "2022.11.22"]
[WhiteClock "0:00:06"]
[BlackClock "0:00:03"]

1. e4 {[%clk 0:03:00]}  e6 {[%clk 0:02:59]} 2. d4 {[%clk 0:03:00]}  d5 {[%clk 0:02:59]} 3. e5 {[%clk 0:03:00]}  c5 {[%clk 0:02:58]} 4. c3 {[%clk 0:03:01]}  Nc6 {[%clk 0:02:58]} 5. Nf3 {[%clk 0:03:01]}  Qb6 {[%clk 0:02:59]} 6. a3 {[%clk 0:03:01]}  Nh6 {[%clk 0:02:58]} 7. b4 {[%clk 0:02:55]}  cxd4 {[%clk 0:02:58]} 8. Bxh6 {[%clk 0:02:56]}  gxh6 {[%clk 0:02:58]} 9. cxd4 {[%clk 0:02:52]}  Bd7 {[%clk 0:02:58]} 10. b5 {[%clk 0:02:43]}  Na5 {[%clk 0:02:57]} 11. Nbd2 {[%clk 0:02:39]}  Rg8 {[%clk 0:02:54]} 12. g3 {[%clk 0:02:33]}  Rc8 {[%clk 0:02:53]} 13. Bd3 {[%clk 0:02:29]}  Nc4 {[%clk 0:02:50]} 14. a4 {[%clk 0:02:15]}  Bb4 {[%clk 0:02:35]} 15. O-O {[%clk 0:01:53]}  Nxd2 {[%clk 0:02:35]} 16. Nxd2 {[%clk 0:01:52]}  Qxd4 {[%clk 0:02:36]} 17. Nf3 {[%clk 0:01:51]}  Qb6 {[%clk 0:02:27]} 18. Rc1 {[%clk 0:01:48]}  Rc5 {[%clk 0:02:22]} 19. Qe2 {[%clk 0:01:42]}  Ke7 {[%clk 0:02:15]} 20. Qe3 {[%clk 0:01:41]}  Rxc1 {[%clk 0:02:12]} 21. Qxc1 {[%clk 0:01:41]}  Qd8 {[%clk 0:01:19]} 22. Qxh6 {[%clk 0:01:40]}  Qf8 {[%clk 0:01:19]} 23. Qh4+ {[%clk 0:01:19]}  Ke8 {[%clk 0:01:19]} 24. Rc1 {[%clk 0:01:19]}  Bc5 {[%clk 0:01:11]} 25. a5 {[%clk 0:01:08]}  b6 {[%clk 0:01:07]} 26. axb6 {[%clk 0:01:08]}  Bxb6 {[%clk 0:01:06]} 27. Kg2 {[%clk 0:01:07]}  h6 {[%clk 0:01:04]} 28. Qa4 {[%clk 0:00:58]}  h5 {[%clk 0:00:57]} 29. h4 {[%clk 0:00:56]}  Rg4 {[%clk 0:00:55]} 30. Qa6 {[%clk 0:00:49]}  Qb4 {[%clk 0:00:51]} 31. Qb7 {[%clk 0:00:44]}  Ke7 {[%clk 0:00:17]} 32. Qb8 {[%clk 0:00:36]}  Qa3 {[%clk 0:00:14]} 33. Be2 {[%clk 0:00:24]}  Qxc1 {[%clk 0:00:11]} 34. Ng5 {[%clk 0:00:20]}  Rxg5 {[%clk 0:00:10]} 35. hxg5 {[%clk 0:00:21]}  Qxg5 {[%clk 0:00:10]} 36. f4 {[%clk 0:00:20]}  Qf5 {[%clk 0:00:09]} 37. Qd6+ {[%clk 0:00:19]}  Kd8 {[%clk 0:00:10]} 38. Bf3 {[%clk 0:00:14]}  Qc2+ {[%clk 0:00:08]} 39. Kh3 {[%clk 0:00:15]}  Qc5 {[%clk 0:00:07]} 40. Qb8+ {[%clk 0:00:15]}  Qc8 {[%clk 0:00:05]} 41. Qd6 {[%clk 0:00:15]}  Bc5 {[%clk 0:00:04]} 42. Qa6 {[%clk 0:00:15]}  Qxa6 {[%clk 0:00:04]} 43. bxa6 {[%clk 0:00:15]}  d4 {[%clk 0:00:04]} 44. Bxh5 {[%clk 0:00:16]}  d3 {[%clk 0:00:04]} 45. f5 {[%clk 0:00:10]}  Ba4 {[%clk 0:00:03]} 46. fxe6 {[%clk 0:00:06]}  fxe6 {[%clk 0:00:03]} 0-1


[Site "https://www.chess.com"]

[Event "Titled Tuesday Blitz November 22 Early 2022"]
[White "Yurasova, Daria"]
[Black "Arabidze, Meri"]
[WhiteFideId "34146919"]
[BlackFideId "13604040"]
[WhiteElo "2097"]
[BlackElo "2403"]
[Result "0-1"]
[Round "11"]
[TimeControl "180+1"]
[Date "2022.11.23"]
[WhiteClock "0:00:09"]
[BlackClock "0:00:07"]

1. d4 {[%clk 0:03:00]}  Nf6 {[%clk 0:02:59]} 2. Bg5 {[%clk 0:02:57]}  d5 {[%clk 0:02:58]} 3. Bxf6 {[%clk 0:02:57]}  exf6 {[%clk 0:02:59]} 4. e3 {[%clk 0:02:57]}  Bd6 {[%clk 0:02:59]} 5. g3 {[%clk 0:02:57]}  c6 {[%clk 0:02:59]} 6. Bg2 {[%clk 0:02:58]}  O-O {[%clk 0:02:59]} 7. Ne2 {[%clk 0:02:58]}  Nd7 {[%clk 0:02:59]} 8. O-O {[%clk 0:02:59]}  f5 {[%clk 0:03:00]} 9. Nd2 {[%clk 0:02:59]}  Nf6 {[%clk 0:02:59]} 10. c4 {[%clk 0:03:00]}  dxc4 {[%clk 0:02:59]} 11. Nxc4 {[%clk 0:03:01]}  Bc7 {[%clk 0:02:59]} 12. b4 {[%clk 0:03:01]}  Be6 {[%clk 0:02:58]} 13. Qc2 {[%clk 0:03:00]}  g6 {[%clk 0:02:57]} 14. Rab1 {[%clk 0:02:59]}  Rc8 {[%clk 0:02:56]} 15. Rfc1 {[%clk 0:02:58]}  Bd5 {[%clk 0:02:55]} 16. a4 {[%clk 0:02:56]}  Bxg2 {[%clk 0:02:52]} 17. Kxg2 {[%clk 0:02:57]}  Qd5+ {[%clk 0:02:52]} 18. Kg1 {[%clk 0:02:58]}  Ne4 {[%clk 0:02:50]} 19. Nd2 {[%clk 0:02:55]}  Ng5 {[%clk 0:02:46]} 20. Kf1 {[%clk 0:01:17]}  Qh1+ {[%clk 0:02:38]} 21. Ng1 {[%clk 0:01:16]}  Qxh2 {[%clk 0:02:31]} 22. Ndf3 {[%clk 0:01:12]}  Nxf3 {[%clk 0:02:30]} 23. Nxf3 {[%clk 0:01:13]}  Qh3+ {[%clk 0:02:23]} 24. Ke2 {[%clk 0:01:11]}  Qg4 {[%clk 0:02:22]} 25. Rh1 {[%clk 0:01:05]}  Bd8 {[%clk 0:02:08]} 26. Rh2 {[%clk 0:00:55]}  h5 {[%clk 0:01:48]} 27. Rbh1 {[%clk 0:00:54]}  Qe4 {[%clk 0:01:48]} 28. Qxe4 {[%clk 0:00:54]}  fxe4 {[%clk 0:01:49]} 29. Nd2 {[%clk 0:00:50]}  f5 {[%clk 0:01:49]} 30. Nc4 {[%clk 0:00:48]}  Bf6 {[%clk 0:01:39]} 31. Rb1 {[%clk 0:00:47]}  Rfd8 {[%clk 0:01:38]} 32. Rhh1 {[%clk 0:00:47]}  Rd5 {[%clk 0:01:33]} 33. Rhc1 {[%clk 0:00:46]}  Kg7 {[%clk 0:01:31]} 34. Na5 {[%clk 0:00:45]}  Rd7 {[%clk 0:01:20]} 35. Nb3 {[%clk 0:00:44]}  Be7 {[%clk 0:01:15]} 36. Nc5 {[%clk 0:00:44]}  Bxc5 {[%clk 0:01:15]} 37. bxc5 {[%clk 0:00:45]}  g5 {[%clk 0:01:07]} 38. a5 {[%clk 0:00:40]}  a6 {[%clk 0:01:01]} 39. Rh1 {[%clk 0:00:39]}  Kg6 {[%clk 0:01:01]} 40. Kd2 {[%clk 0:00:39]}  Rh8 {[%clk 0:00:59]} 41. Rbg1 {[%clk 0:00:38]}  Kf6 {[%clk 0:00:57]} 42. Kc3 {[%clk 0:00:38]}  h4 {[%clk 0:00:52]} 43. Rh3 {[%clk 0:00:15]}  Rdh7 {[%clk 0:00:45]} 44. gxh4 {[%clk 0:00:15]}  Rxh4 {[%clk 0:00:43]} 45. Rhg3 {[%clk 0:00:16]}  g4 {[%clk 0:00:42]} 46. Rb1 {[%clk 0:00:14]}  R8h7 {[%clk 0:00:41]} 47. Rb2 {[%clk 0:00:11]}  Rh3 {[%clk 0:00:33]} 48. Rg1 {[%clk 0:00:11]}  Rf3 {[%clk 0:00:29]} 49. Rgb1 {[%clk 0:00:10]}  g3 {[%clk 0:00:26]} 50. fxg3 {[%clk 0:00:10]}  Rxe3+ {[%clk 0:00:27]} 51. Kc4 {[%clk 0:00:09]}  Rxg3 {[%clk 0:00:26]} 52. Rxb7 {[%clk 0:00:10]}  Rxb7 {[%clk 0:00:21]} 53. Rxb7 {[%clk 0:00:10]}  f4 {[%clk 0:00:22]} 54. Rc7 {[%clk 0:00:09]}  f3 {[%clk 0:00:20]} 55. Rxc6+ {[%clk 0:00:10]}  Kf5 {[%clk 0:00:20]} 56. Rc8 {[%clk 0:00:10]}  Rg6 {[%clk 0:00:17]} 57. d5 {[%clk 0:00:05]}  f2 {[%clk 0:00:17]} 58. Rf8+ {[%clk 0:00:04]}  Rf6 {[%clk 0:00:17]} 59. Rxf6+ {[%clk 0:00:04]}  Kxf6 {[%clk 0:00:17]} 60. c6 {[%clk 0:00:05]}  f1=Q+ {[%clk 0:00:18]} 61. Kc5 {[%clk 0:00:06]}  Qb5+ {[%clk 0:00:17]} 62. Kd6 {[%clk 0:00:06]}  Qxa5 {[%clk 0:00:17]} 63. c7 {[%clk 0:00:07]}  Qb4+ {[%clk 0:00:13]} 64. Kd7 {[%clk 0:00:08]}  Qb5+ {[%clk 0:00:13]} 65. Kd6 {[%clk 0:00:08]}  Qb6+ {[%clk 0:00:13]} 66. Kd7 {[%clk 0:00:09]}  Qb7 {[%clk 0:00:11]} 67. d6 {[%clk 0:00:09]}  e3 {[%clk 0:00:10]} 68. Kd8 {[%clk 0:00:09]}  Qb6 {[%clk 0:00:11]} 69. Kd7 {[%clk 0:00:09]}  Qb5+ {[%clk 0:00:11]} 70. Kd8 {[%clk 0:00:09]}  Qc6 {[%clk 0:00:10]} 71. d7 {[%clk 0:00:09]}  Qb6 {[%clk 0:00:08]} 72. Kc8 {[%clk 0:00:09]}  Qe6 {[%clk 0:00:07]} 73. Kd8 {[%clk 0:00:09]}  Qg8# {[%clk 0:00:07]} 0-1


[Site "https://www.chess.com"]